Workbook

Sheet Sheet1
A1: Black-Scholes Preise von Call- und Put-Optionen
A3: Options-Parameter:
A4: Ausuebungspreis oder Strike K | B4: 80
A5: Laufzeit oder Maturity T | B5: 1
A6: Options-Typ (call/put) | B6: call
A7: Barrier B | B7: 80
A8: Markt-Parameter:
A9: aktueller Preis S0 des Basiswerts | B9: 100
A10: jaehrliche Volatilitaet | B10: 0.3
A11: jaehrlicher Zinssatz | B11: 0
A13: kappa | B13: =2*B11/B10^2 -> 0
A14: Black-Scholes Preis Standard Call/Put | B14: =BlackScholesPrice(B9,B4,B5,B6,B10,B11) -> 23.5343901
A15: Black-Scholes Preis Barrier Call (down and out) | B15: =IF(B4>=B7,VLOOKUP(B9,A20:B210,2,FALSE),VLOOKUP(B9,I21:J210,2,FALSE)) -> 20
A20: S0 | B20: V_Barrier (K>=B) | C20: V_call(S0) | D20: V_call(B^2/S0) | I20: S0 | J20: V_Barrier (K<B) | K20: V_call(S0) | L20: V^B_call(S0) | M20: V^B_Dig(S0) | N20: V^B_call(B^2/S0) | O20: V^B_Dig(B^2/S0)
A21: 11 | B21: =IF(A21>$B$7,C21-(A21/$B$7)^(1-$B$13)*D21,0) -> 0 | C21: =BlackScholesPrice(A21,$B$4,$B$5,$B$6,$B$10,$B$11) -> 2.390749102e-11 | D21: =BlackScholesPrice($B$7^2/A21,$B$4,$B$5,$B$6,$B$10,$B$11) -> 501.8181818 | I21: 11 | J21: =IF(I21<$B$7,0,L21+($B$7-$B$4)*M21-(I21/$B$7)^(1-$B$13)*(N21+($B$7-$B$4)*O21)) -> 0 | K21: =BlackScholesPrice(I21,$B$4,$B$5,$B$6,$B$10,$B$11) -> 2.390749102e-11 | L21: =BlackScholesPrice(I21,$B$7,$B$5,$B$6,$B$10,$B$11) -> 2.390749102e-11 | M21: =BlackScholesDigital(I21,$B$7,$B$5,$B$6,$B$10,$B$11) -> 6.722267099e-12 | N21: =BlackScholesPrice($B$7^2/I21,$B$7,$B$5,$B$6,$B$10,$B$11) -> 501.8181818 | O21: =BlackScholesDigital($B$7^2/I21,$B$7,$B$5,$B$6,$B$10,$B$11) -> 0.9999999999
A22: 12 | B22: =IF(A22>$B$7,C22-(A22/$B$7)^(1-$B$13)*D22,0) -> 0 | C22: =BlackScholesPrice(A22,$B$4,$B$5,$B$6,$B$10,$B$11) -> 1.773366551e-10 | D22: =BlackScholesPrice($B$7^2/A22,$B$4,$B$5,$B$6,$B$10,$B$11) -> 453.3333333 | I22: 12 | J22: =IF(I22<$B$7,0,L22+($B$7-$B$4)*M22-(I22/$B$7)^(1-$B$13)*(N22+($B$7-$B$4)*O22)) -> 0 | K22: =BlackScholesPrice(I22,$B$4,$B$5,$B$6,$B$10,$B$11) -> 1.773366551e-10 | L22: =BlackScholesPrice(I22,$B$7,$B$5,$B$6,$B$10,$B$11) -> 1.773366551e-10 | M22: =BlackScholesDigital(I22,$B$7,$B$5,$B$6,$B$10,$B$11) -> 4.780530622e-11 | N22: =BlackScholesPrice($B$7^2/I22,$B$7,$B$5,$B$6,$B$10,$B$11) -> 453.3333333 | O22: =BlackScholesDigital($B$7^2/I22,$B$7,$B$5,$B$6,$B$10,$B$11) -> 0.9999999997
A23: 13 | B23: 0 | C23: 1.043354645e-09 | D23: 412.3076923 | I23: 13 | J23: 0 | K23: 1.043354645e-09 | L23: 1.043354645e-09 | M23: 2.701581148e-10 | N23: 412.3076923 | O23: 0.9999999983
A24: 14 | B24: 0 | C24: 5.06592413e-09 | D24: 377.1428572 | I24: 14 | J24: 0 | K24: 5.06592413e-09 | L24: 5.06592413e-09 | M24: 1.261979564e-09 | N24: 377.1428572 | O24: 0.9999999924
A25: 15 | B25: 0 | C25: 2.093285384e-08 | D25: 346.6666668 | I25: 15 | J25: 0 | K25: 2.093285384e-08 | L25: 2.093285384e-08 | M25: 5.023857709e-09 | N25: 346.6666668 | O25: 0.9999999718
A26: 16 | B26: 0 | C26: 7.541809725e-08 | D26: 320.0000004 | I26: 16 | J26: 0 | K26: 7.541809725e-08 | L26: 7.541809725e-08 | M26: 1.745953126e-08 | N26: 320.0000004 | O26: 0.999999908
A27: 17 | B27: 0 | C27: 2.415700051e-07 | D27: 296.4705894 | I27: 17 | J27: 0 | K27: 2.415700051e-07 | L27: 2.415700051e-07 | M27: 5.400313662e-08 | N27: 296.4705894 | O27: 0.9999997317
A28: 18 | B28: 0 | C28: 6.988598009e-07 | D28: 275.5555587 | I28: 18 | J28: 0 | K28: 6.988598009e-07 | L28: 6.988598009e-07 | M28: 1.510093431e-07 | N28: 275.5555587 | O28: 0.99999929
A29: 19 | B29: 0 | C29: 1.849935496e-06 | D29: 256.8421131 | I29: 19 | J29: 0 | K29: 1.849935496e-06 | L29: 1.849935496e-06 | M29: 3.867077076e-07 | N29: 256.8421131 | O29: 0.9999982744
A30: 20 | B30: 0 | C30: 4.529282255e-06 | D30: 240.0000181 | I30: 20 | J30: 0 | K30: 4.529282255e-06 | L30: 4.529282255e-06 | M30: 9.166532486e-07 | N30: 240.0000181 | O30: 0.9999961069
A31: 21 | B31: 0 | C31: 1.035000325e-05 | D31: 224.7619442 | I31: 21 | J31: 0 | K31: 1.035000325e-05 | L31: 1.035000325e-05 | M31: 2.029411248e-06 | N31: 224.7619442 | O31: 0.9999917761
A32: 22 | B32: 0 | C32: 2.2244213e-05 | D32: 210.9091718 | I32: 22 | J32: 0 | K32: 2.2244213e-05 | L32: 2.2244213e-05 | M32: 4.228405818e-06 | N32: 210.9091718 | O32: 0.9999836129
A33: 23 | B33: 0 | C33: 4.525809614e-05 | D33: 198.261027 | I33: 23 | J33: 0 | K33: 4.525809614e-05 | L33: 4.525809614e-05 | M33: 8.345212144e-06 | N33: 198.261027 | O33: 0.9999690054
A34: 24 | B34: 0 | C34: 8.766267202e-05 | D34: 186.6669589 | I34: 24 | J34: 0 | K34: 8.766267202e-05 | L34: 8.766267202e-05 | M34: 1.568797896e-05 | N34: 186.6669589 | O34: 0.9999440541
A35: 25 | B35: 0 | C35: 0.0001624344708 | D35: 176.0005198 | I35: 25 | J35: 0 | K35: 0.0001624344708 | L35: 0.0001624344708 | M35: 2.822618474e-05 | N35: 176.0005198 | O35: 0.9999031788
A36: 26 | B36: 0 | C36: 0.0002891462945 | D36: 166.1547358 | I36: 26 | J36: 0 | K36: 0.0002891462945 | L36: 0.0002891462945 | M36: 4.880976626e-05 | N36: 166.1547358 | O36: 0.9998386951
A37: 27 | B37: 0 | C37: 0.0004962875984 | D37: 157.0385075 | I37: 27 | J37: 0 | K37: 0.0004962875984 | L37: 0.0004962875984 | M37: 8.141713887e-05 | N37: 157.0385075 | O37: 0.999740383
A38: 28 | B38: 0 | C38: 0.0008240082537 | D38: 148.5737829 | I38: 28 | J38: 0 | K38: 0.0008240082537 | L38: 0.0008240082537 | M38: 0.0001314231462 | N38: 148.5737829 | O38: 0.9995950764
A39: 29 | B39: 0 | C39: 0.001327250694 | D39: 140.6933166 | I39: 29 | J39: 0 | K39: 0.001327250694 | L39: 0.001327250694 | M39: 0.0002058749268 | N39: 140.6933166 | O39: 0.9993863019
A40: 30 | B40: 0 | C40: 0.002079206186 | D40: 133.3388779 | I40: 30 | J40: 0 | K40: 0.002079206186 | L40: 0.002079206186 | M40: 0.0003137614064 | N40: 133.3388779 | O40: 0.999093996
A41: 31 | B41: 0 | C41: 0.003175003769 | D41: 126.4598065 | I41: 31 | J41: 0 | K41: 0.003175003769 | L41: 0.003175003769 | M41: 0.00046626086 | N41: 126.4598065 | O41: 0.9986943267
A42: 32 | B42: 0 | C42: 0.004735517511 | D42: 120.0118388 | I42: 32 | J42: 0 | K42: 0.004735517511 | L42: 0.004735517511 | M42: 0.0006769508618 | N42: 120.0118388 | O42: 0.9981596379
A43: 33 | B43: 0 | C43: 0.006911160977 | D43: 113.9561483 | I43: 33 | J43: 0 | K43: 0.006911160977 | L43: 0.006911160977 | M43: 0.0009619659538 | N43: 113.9561483 | O43: 0.9974585322
A44: 34 | B44: 0 | C44: 0.009885528323 | D44: 108.2585542 | I44: 34 | J44: 0 | K44: 0.009885528323 | L44: 0.009885528323 | M44: 0.001340090411 | N44: 108.2585542 | O44: 0.9965560953
A45: 35 | B45: 0 | C45: 0.01387873976 | D45: 102.8888657 | I45: 35 | J45: 0 | K45: 0.01387873976 | L45: 0.01387873976 | M45: 0.001832776359 | N45: 102.8888657 | O45: 0.9954142615
A46: 36 | B46: 0 | C46: 0.01915035504 | D46: 97.82033412 | I46: 36 | J46: 0 | K46: 0.01915035504 | L46: 0.01915035504 | M46: 0.002464080965 | N46: 97.82033412 | O46: 0.9939923102
A47: 37 | B47: 0 | C47: 0.02600173165 | D47: 93.02919293 | I47: 37 | J47: 0 | K47: 0.02600173165 | L47: 0.02600173165 | M47: 0.003260520206 | N47: 93.02919293 | O47: 0.9922474771
A48: 38 | B48: 0 | C48: 0.03477772292 | D48: 88.49426889 | I48: 38 | J48: 0 | K48: 0.03477772292 | L48: 0.03477772292 | M48: 0.004250840526 | N48: 88.49426889 | O48: 0.9901356588
A49: 39 | B49: 0 | C49: 0.04586763457 | D49: 84.19665156 | I49: 39 | J49: 0 | K49: 0.04586763457 | L49: 0.04586763457 | M49: 0.00546571331 | N49: 84.19665156 | O49: 0.9876121872
A50: 40 | B50: 0 | C50: 0.05970538415 | D50: 80.11941077 | I50: 40 | J50: 0 | K50: 0.05970538415 | L50: 0.05970538415 | M50: 0.006937360292 | N50: 80.11941077 | O50: 0.9846326448
A51: 41 | B51: 0 | C51: 0.0767688351 | D51: 76.24735382 | I51: 41 | J51: 0 | K51: 0.0767688351 | L51: 0.0767688351 | M51: 0.008699120658 | N51: 76.24735382 | O51: 0.9811536954
A52: 42 | B52: 0 | C52: 0.09757830448 | D52: 72.56681582 | I52: 42 | J52: 0 | K52: 0.09757830448 | L52: 0.09757830448 | M52: 0.0107849726 | N52: 72.56681582 | O52: 0.9771339021
A53: 43 | B53: 0 | C53: 0.1226942689 | D53: 69.06547771 | I53: 43 | J53: 0 | K53: 0.1226942689 | L53: 0.1226942689 | M53: 0.01322902334 | N53: 69.06547771 | O53: 0.9725345085
A54: 44 | B54: 0 | C54: 0.1527143171 | D54: 65.73220785 | I54: 44 | J54: 0 | K54: 0.1527143171 | L54: 0.1527143171 | M54: 0.01606498223 | N54: 65.73220785 | O54: 0.9673201615
A55: 45 | B55: 0 | C55: 0.1882694165 | D55: 62.55692341 | I55: 45 | J55: 0 | K55: 0.1882694165 | L55: 0.1882694165 | M55: 0.01932563155 | N55: 62.55692341 | O55: 0.9614595569
A56: 46 | B56: 0 | C56: 0.2300195792 | D56: 59.53046883 | I56: 46 | J56: 0 | K56: 0.2300195792 | L56: 0.2300195792 | M56: 0.02304230888 | N56: 59.53046883 | O56: 0.9549259937
A57: 47 | B57: 0 | C57: 0.2786490238 | D57: 56.64450898 | I57: 47 | J57: 0 | K57: 0.2786490238 | L57: 0.2786490238 | M57: 0.02724441387 | N57: 56.64450898 | O57: 0.9476978269
A58: 48 | B58: 0 | C58: 0.3348609373 | D58: 53.8914349 | I58: 48 | J58: 0 | K58: 0.3348609373 | L58: 0.3348609373 | M58: 0.03195895083 | N58: 53.8914349 | O58: 0.9397588124
A59: 49 | B59: 0 | C59: 0.3993719485 | D59: 51.26428073 | I59: 49 | J59: 0 | K59: 0.3993719485 | L59: 0.3993719485 | M59: 0.03721011653 | N59: 51.26428073 | O59: 0.9310983414
A60: 50 | B60: 0 | C60: 0.4729064204 | D60: 48.75665027 | I60: 50 | J60: 0 | K60: 0.4729064204 | L60: 0.4729064204 | M60: 0.04301894115 | N60: 48.75665027 | O60: 0.9217115657
A61: 51 | B61: 0 | C61: 0.5561906713 | D61: 46.36265203 | I61: 51 | J61: 0 | K61: 0.5561906713 | L61: 0.5561906713 | M61: 0.04940298773 | N61: 46.36265203 | O61: 0.9115994178
A62: 52 | B62: 0 | C62: 0.6499472257 | D62: 44.07684189 | I62: 52 | J62: 0 | K62: 0.6499472257 | L62: 0.6499472257 | M62: 0.05637611406 | N62: 44.07684189 | O62: 0.9007685317
A63: 53 | B63: 0 | C63: 0.7548891905 | D63: 41.89417236 | I63: 53 | J63: 0 | K63: 0.7548891905 | L63: 0.7548891905 | M63: 0.06394829871 | N63: 41.89417236 | O63: 0.8892310738
A64: 54 | B64: 0 | C64: 0.8717148407 | D64: 39.80994791 | I64: 54 | J64: 0 | K64: 0.8717148407 | L64: 0.8717148407 | M64: 0.07212553129 | N64: 39.80994791 | O64: 0.8770044936
A65: 55 | B65: 0 | C65: 1.00110249 | D65: 37.81978544 | I65: 55 | J65: 0 | K65: 1.00110249 | L65: 1.00110249 | M65: 0.08090976549 | N65: 37.81978544 | O65: 0.8641112049
A66: 56 | B66: 0 | C66: 1.143705713 | D66: 35.91957959 | I66: 56 | J66: 0 | K66: 1.143705713 | L66: 1.143705713 | M66: 0.09029893204 | N66: 35.91957959 | O66: 0.8505782094
A67: 57 | B67: 0 | C67: 1.30014896 | D67: 34.10547222 | I67: 57 | J67: 0 | K67: 1.30014896 | L67: 1.30014896 | M67: 0.1002870076 | N67: 34.10547222 | O67: 0.8364366742
A68: 58 | B68: 0 | C68: 1.471023622 | D68: 32.37382568 | I68: 58 | J68: 0 | K68: 1.471023622 | L68: 1.471023622 | M68: 0.1108641351 | N68: 32.37382568 | O68: 0.8217214754
A69: 59 | B69: 0 | C69: 1.656884559 | D69: 30.7211994 | I69: 59 | J69: 0 | K69: 1.656884559 | L69: 1.656884559 | M69: 0.1220167889 | N69: 30.7211994 | O69: 0.8064707174
A70: 60 | B70: 0 | C70: 1.858247118 | D70: 29.14432949 | I70: 60 | J70: 0 | K70: 1.858247118 | L70: 1.858247118 | M70: 0.1337279812 | N70: 29.14432949 | O70: 0.7907252398
A71: 61 | B71: 0 | C71: 2.075584646 | D71: 27.64011101 | I71: 61 | J71: 0 | K71: 2.075584646 | L71: 2.075584646 | M71: 0.1459775003 | N71: 27.64011101 | O71: 0.7745281201
A72: 62 | B72: 0 | C72: 2.309326498 | D72: 26.20558258 | I72: 62 | J72: 0 | K72: 2.309326498 | L72: 2.309326498 | M72: 0.1587421777 | N72: 26.20558258 | O72: 0.7579241821
A73: 63 | B73: 0 | C73: 2.559856534 | D73: 24.83791306 | I73: 63 | J73: 0 | K73: 2.559856534 | L73: 2.559856534 | M73: 0.171996175 | N73: 24.83791306 | O73: 0.7409595154
A74: 64 | B74: 0 | C74: 2.827512083 | D74: 23.5343901 | I74: 64 | J74: 0 | K74: 2.827512083 | L74: 2.827512083 | M74: 0.1857112872 | N74: 23.5343901 | O74: 0.7236810147
A75: 65 | B75: 0 | C75: 3.112583361 | D75: 22.29241029 | I75: 65 | J75: 0 | K75: 3.112583361 | L75: 3.112583361 | M75: 0.199857255 | N75: 22.29241029 | O75: 0.7061359421
A76: 66 | B76: 0 | C76: 3.415313311 | D76: 21.10947068 | I76: 66 | J76: 0 | K76: 3.415313311 | L76: 3.415313311 | M76: 0.2144020812 | N76: 21.10947068 | O76: 0.688371518
A77: 67 | B77: 0 | C77: 3.735897833 | D77: 19.98316159 | I77: 67 | J77: 0 | K77: 3.735897833 | L77: 3.735897833 | M77: 0.2293123475 | N77: 19.98316159 | O77: 0.6704345428
A78: 68 | B78: 0 | C78: 4.074486385 | D78: 18.91116045 | I78: 68 | J78: 0 | K78: 4.074486385 | L78: 4.074486385 | M78: 0.2445535255 | N78: 18.91116045 | O78: 0.6523710526
A79: 69 | B79: 0 | C79: 4.431182898 | D79: 17.89122655 | I79: 69 | J79: 0 | K79: 4.431182898 | L79: 4.431182898 | M79: 0.2600902806 | N79: 17.89122655 | O79: 0.6342260095
A80: 70 | B80: 0 | C80: 4.806046994 | D80: 16.92119656 | I80: 70 | J80: 0 | K80: 4.806046994 | L80: 4.806046994 | M80: 0.2758867629 | N80: 16.92119656 | O80: 0.6160430282
A81: 71 | B81: 0 | C81: 5.199095458 | D81: 15.9989808 | I81: 71 | J81: 0 | K81: 5.199095458 | L81: 5.199095458 | M81: 0.2919068851 | N81: 15.9989808 | O81: 0.5978641372
A82: 72 | B82: 0 | C82: 5.610303921 | D82: 15.12255991 | I82: 72 | J82: 0 | K82: 5.610303921 | L82: 5.610303921 | M82: 0.3081145824 | N82: 15.12255991 | O82: 0.5797295762
A83: 73 | B83: 0 | C83: 6.039608745 | D83: 14.28998219 | I83: 73 | J83: 0 | K83: 6.039608745 | L83: 6.039608745 | M83: 0.3244740558 | N83: 14.28998219 | O83: 0.5616776273
A84: 74 | B84: 0 | C84: 6.486909042 | D84: 13.49936113 | I84: 74 | J84: 0 | K84: 6.486909042 | L84: 6.486909042 | M84: 0.3409499946 | N84: 13.49936113 | O84: 0.5437444782
A85: 75 | B85: 0 | C85: 6.952068834 | D85: 12.74887342 | I85: 75 | J85: 0 | K85: 6.952068834 | L85: 6.952068834 | M85: 0.3575077796 | N85: 12.74887342 | O85: 0.5259641173
A86: 76 | B86: =IF(A86>$B$7,C86-(A86/$B$7)^(1-$B$13)*D86,0) -> 0 | C86: =BlackScholesPrice(A86,$B$4,$B$5,$B$6,$B$10,$B$11) -> 7.434919282 | D86: =BlackScholesPrice($B$7^2/A86,$B$4,$B$5,$B$6,$B$10,$B$11) -> 12.03675714 | I86: 76 | J86: =IF(I86<$B$7,0,L86+($B$7-$B$4)*M86-(I86/$B$7)^(1-$B$13)*(N86+($B$7-$B$4)*O86)) -> 0 | K86: =BlackScholesPrice(I86,$B$4,$B$5,$B$6,$B$10,$B$11) -> 7.434919282 | L86: =BlackScholesPrice(I86,$B$7,$B$5,$B$6,$B$10,$B$11) -> 7.434919282 | M86: =BlackScholesDigital(I86,$B$7,$B$5,$B$6,$B$10,$B$11) -> 0.3741136649 | N86: =BlackScholesPrice($B$7^2/I86,$B$7,$B$5,$B$6,$B$10,$B$11) -> 12.03675714 | O86: =BlackScholesDigital($B$7^2/I86,$B$7,$B$5,$B$6,$B$10,$B$11) -> 0.508368257
A87: 77 | B87: 0 | C87: 7.935260998 | D87: 11.36131013 | I87: 77 | J87: 0 | K87: 7.935260998 | L87: 7.935260998 | M87: 0.3907349389 | N87: 11.36131013 | O87: 0.4909862843
A88: 78 | B88: 0 | C88: 8.452866379 | D88: 10.72088859 | I88: 78 | J88: 0 | K88: 8.452866379 | L88: 8.452866379 | M88: 0.4073400653 | N88: 10.72088859 | O88: 0.4738452359
A89: 79 | B89: 0 | C89: 8.987481964 | D89: 10.11390579 | I89: 79 | J89: 0 | K89: 8.987481964 | L89: 8.987481964 | M89: 0.4238988032 | N89: 10.11390579 | O89: 0.4569697947
A90: 80 | B90: 0 | C90: 9.538830779 | D90: 9.538830779 | I90: 80 | J90: 0 | K90: 9.538830779 | L90: 9.538830779 | M90: 0.4403823076 | N90: 9.538830779 | O90: 0.4403823076
A91: 81 | B91: 1 | C91: 10.10661466 | D91: 8.994187316 | I91: 81 | J91: 1 | K91: 10.10661466 | L91: 10.10661466 | M91: 0.4567632118 | N91: 8.994187316 | O91: 0.4241028197
A92: 82 | B92: 2 | C92: 10.69051652 | D92: 8.4785527 | I92: 82 | J92: 2 | K92: 10.69051652 | L92: 10.69051652 | M92: 0.4730156909 | N92: 8.4785527 | O92: 0.4081491245
A93: 83 | B93: 3 | C93: 11.29020259 | D93: 7.990556709 | I93: 83 | J93: 3 | K93: 11.29020259 | L93: 11.29020259 | M93: 0.48911551 | N93: 7.990556709 | O93: 0.3925368267
A94: 84 | B94: 4 | C94: 11.90532455 | D94: 7.52888052 | I94: 84 | J94: 4 | K94: 11.90532455 | L94: 11.90532455 | M94: 0.505040055 | N94: 7.52888052 | O94: 0.3772794173
A95: 85 | B95: 5 | C95: 12.53552161 | D95: 7.092255636 | I95: 85 | J95: 5 | K95: 12.53552161 | L95: 12.53552161 | M95: 0.5207683513 | N95: 7.092255636 | O95: 0.3623883563
A96: 86 | B96: 6 | C96: 13.18042252 | D96: 6.679462812 | I96: 86 | J96: 6 | K96: 13.18042252 | L96: 13.18042252 | M96: 0.5362810668 | N96: 6.679462812 | O96: 0.3478731644
A97: 87 | B97: 7 | C97: 13.83964742 | D97: 6.289330958 | I97: 87 | J97: 7 | K97: 13.83964742 | L97: 13.83964742 | M97: 0.5515605053 | N97: 6.289330958 | O97: 0.3337415191
A98: 88 | B98: 8 | C98: 14.51280964 | D98: 5.920736036 | I98: 88 | J98: 8 | K98: 14.51280964 | L98: 14.51280964 | M98: 0.5665905877 | N98: 5.920736036 | O98: 0.3199993562
A99: 89 | B99: 9 | C99: 15.19951743 | D99: 5.572599935 | I99: 89 | J99: 9 | K99: 15.19951743 | L99: 15.19951743 | M99: 0.5813568244 | N99: 5.572599935 | O99: 0.3066509733
A100: 90 | B100: 10 | C100: 15.8993755 | D100: 5.243889329 | I100: 90 | J100: 10 | K100: 15.8993755 | L100: 15.8993755 | M100: 0.5958462792 | N100: 5.243889329 | O100: 0.2936991352
A101: 91 | B101: 11 | C101: 16.61198651 | D101: 4.933614518 | I101: 91 | J101: 11 | K101: 16.61198651 | L101: 16.61198651 | M101: 0.6100475262 | N101: 4.933614518 | O101: 0.2811451801
A102: 92 | B102: 12 | C102: 17.33695249 | D102: 4.640828251 | I102: 92 | J102: 12 | K102: 17.33695249 | L102: 17.33695249 | M102: 0.6239506004 | N102: 4.640828251 | O102: 0.2689891248
A103: 93 | B103: 13 | C103: 18.07387602 | D103: 4.364624533 | I103: 93 | J103: 13 | K103: 18.07387602 | L103: 18.07387602 | M103: 0.6375469434 | N103: 4.364624533 | O103: 0.2572297689
A104: 94 | B104: 14 | C104: 18.82236148 | D104: 4.104137428 | I104: 94 | J104: 14 | K104: 18.82236148 | L104: 18.82236148 | M104: 0.6508293446 | N104: 4.104137428 | O104: 0.2458647974
A105: 95 | B105: 15 | C105: 19.58201606 | D105: 3.858539843 | I105: 95 | J105: 15 | K105: 19.58201606 | L105: 19.58201606 | M105: 0.6637918796 | N105: 3.858539843 | O105: 0.2348908797
A106: 96 | B106: 16 | C106: 20.35245077 | D106: 3.627042312 | I106: 96 | J106: 16 | K106: 20.35245077 | L106: 20.35245077 | M106: 0.6764298459 | N106: 3.627042312 | O106: 0.2243037662
A107: 97 | B107: 17 | C107: 21.13328128 | D107: 3.408891777 | I107: 97 | J107: 17 | K107: 21.13328128 | L107: 21.13328128 | M107: 0.6887396967 | N107: 3.408891777 | O107: 0.2140983813
A108: 98 | B108: 18 | C108: 21.9241287 | D108: 3.203370367 | I108: 98 | J108: 18 | K108: 21.9241287 | L108: 21.9241287 | M108: 0.700718974 | N108: 3.203370367 | O108: 0.204268912
A109: 99 | B109: 19 | C109: 22.7246203 | D109: 3.009794181 | I109: 99 | J109: 19 | K109: 22.7246203 | L109: 22.7246203 | M109: 0.7123662411 | N109: 3.009794181 | O109: 0.1948088931
A110: 100 | B110: 20 | C110: 23.5343901 | D110: 2.827512083 | I110: 100 | J110: 20 | K110: 23.5343901 | L110: 23.5343901 | M110: 0.7236810147 | N110: 2.827512083 | O110: 0.1857112872
A111: 101 | B111: 21 | C111: 24.35307943 | D111: 2.655904496 | I111: 101 | J111: 21 | K111: 24.35307943 | L111: 24.35307943 | M111: 0.7346636986 | N111: 2.655904496 | O111: 0.1769685612
A112: 102 | B112: 22 | C112: 25.18033734 | D112: 2.494382224 | I112: 102 | J112: 22 | K112: 25.18033734 | L112: 25.18033734 | M112: 0.7453155175 | N112: 2.494382224 | O112: 0.1685727575
A113: 103 | B113: 23 | C113: 26.01582104 | D113: 2.342385273 | I113: 103 | J113: 23 | K113: 26.01582104 | L113: 26.01582104 | M113: 0.755638452 | N113: 2.342385273 | O113: 0.1605155611
A114: 104 | B114: 24 | C114: 26.85919621 | D114: 2.199381701 | I114: 104 | J114: 24 | K114: 26.85919621 | L114: 26.85919621 | M114: 0.7656351764 | N114: 2.199381701 | O114: 0.1527883622
A115: 105 | B115: 25 | C115: 27.71013726 | D115: 2.064866486 | I115: 105 | J115: 25 | K115: 27.71013726 | L115: 27.71013726 | M115: 0.775308997 | N115: 2.064866486 | O115: 0.145382314
A116: 106 | B116: 26 | C116: 28.56832754 | D116: 1.938360409 | I116: 106 | J116: 26 | K116: 28.56832754 | L116: 28.56832754 | M116: 0.7846637934 | N116: 1.938360409 | O116: 0.1382883867
A117: 107 | B117: 27 | C117: 29.4334595 | D117: 1.819408974 | I117: 107 | J117: 27 | K117: 29.4334595 | L117: 29.4334595 | M117: 0.7937039614 | N117: 1.819408974 | O117: 0.1314974167
A118: 108 | B118: 28 | C118: 30.30523481 | D118: 1.707581338 | I118: 108 | J118: 28 | K118: 30.30523481 | L118: 30.30523481 | M118: 0.8024343596 | N118: 1.707581338 | O118: 0.1250001521
A119: 109 | B119: 29 | C119: 31.1833644 | D119: 1.602469281 | I119: 109 | J119: 29 | K119: 31.1833644 | L119: 31.1833644 | M119: 0.8108602565 | N119: 1.602469281 | O119: 0.1187872943
A120: 110 | B120: 30 | C120: 32.06756852 | D120: 1.503686195 | I120: 110 | J120: 30 | K120: 32.06756852 | L120: 32.06756852 | M120: 0.8189872822 | N120: 1.503686195 | O120: 0.1128495355
A121: 111 | B121: 31 | C121: 32.95757672 | D121: 1.410866105 | I121: 111 | J121: 31 | K121: 32.95757672 | L121: 32.95757672 | M121: 0.8268213813 | N121: 1.410866105 | O121: 0.1071775926
A122: 112 | B122: 32 | C122: 33.8531278 | D122: 1.323662718 | I122: 112 | J122: 32 | K122: 33.8531278 | L122: 33.8531278 | M122: 0.8343687692 | N122: 1.323662718 | O122: 0.1017622381
A123: 113 | B123: 33 | C123: 34.75396976 | D123: 1.241748505 | I123: 113 | J123: 33 | K123: 34.75396976 | L123: 34.75396976 | M123: 0.8416358906 | N123: 1.241748505 | O123: 0.09659432734
A124: 114 | B124: 34 | C124: 35.65985968 | D124: 1.164813812 | I124: 114 | J124: 34 | K124: 35.65985968 | L124: 35.65985968 | M124: 0.848629381 | N124: 1.164813812 | O124: 0.0916648231
A125: 115 | B125: 35 | C125: 36.57056362 | D125: 1.092565997 | I125: 115 | J125: 35 | K125: 36.57056362 | L125: 36.57056362 | M125: 0.8553560307 | N125: 1.092565997 | O125: 0.08696481676
A126: 116 | B126: 36 | C126: 37.48585647 | D126: 1.024728601 | I126: 116 | J126: 36 | K126: 37.48585647 | L126: 37.48585647 | M126: 0.8618227505 | N126: 1.024728601 | O126: 0.08248554734
A127: 117 | B127: 37 | C127: 38.40552181 | D127: 0.9610405567 | I127: 117 | J127: 37 | K127: 38.40552181 | L127: 38.40552181 | M127: 0.8680365413 | N127: 0.9610405567 | O127: 0.07821841777
A128: 118 | B128: 38 | C128: 39.32935173 | D128: 0.9012554113 | I128: 118 | J128: 38 | K128: 39.32935173 | L128: 39.32935173 | M128: 0.8740044652 | N128: 0.9012554113 | O128: 0.0741550089
A129: 119 | B129: 39 | C129: 40.25714663 | D129: 0.8451405948 | I129: 119 | J129: 39 | K129: 40.25714663 | L129: 40.25714663 | M129: 0.8797336186 | N129: 0.8451405948 | O129: 0.07028709142
A130: 120 | B130: 40 | C130: 41.18871506 | D130: 0.7924767092 | I130: 120 | J130: 40 | K130: 41.18871506 | L130: 41.18871506 | M130: 0.8852311081 | N130: 0.7924767092 | O130: 0.06660663571
A131: 121 | B131: 41 | C131: 42.12387349 | D131: 0.7430568501 | I131: 121 | J131: 41 | K131: 42.12387349 | L131: 42.12387349 | M131: 0.8905040288 | N131: 0.7430568501 | O131: 0.06310581992
A132: 122 | B132: 42 | C132: 43.06244608 | D132: 0.6966859556 | I132: 122 | J132: 42 | K132: 43.06244608 | L132: 43.06244608 | M132: 0.8955594434 | N132: 0.6966859556 | O132: 0.05977703646
A133: 123 | B133: 43 | C133: 44.00426453 | D133: 0.6531801847 | I133: 123 | J133: 43 | K133: 44.00426453 | L133: 44.00426453 | M133: 0.9004043645 | N133: 0.6531801847 | O133: 0.05661289682
A134: 124 | B134: 44 | C134: 44.9491678 | D134: 0.6123663216 | I134: 124 | J134: 44 | K134: 44.9491678 | L134: 44.9491678 | M134: 0.905045738 | N134: 0.6123663216 | O134: 0.05360623516
A135: 125 | B135: 45 | C135: 45.89700189 | D135: 0.5740812078 | I135: 125 | J135: 45 | K135: 45.89700189 | L135: 45.89700189 | M135: 0.9094904287 | N135: 0.5740812078 | O135: 0.05075011056
A136: 126 | B136: 46 | C136: 46.84761964 | D136: 0.5381711995 | I136: 126 | J136: 46 | K136: 46.84761964 | L136: 46.84761964 | M136: 0.9137452066 | N136: 0.5381711995 | O136: 0.04803780819
A137: 127 | B137: 47 | C137: 47.8008805 | D137: 0.5044916507 | I137: 127 | J137: 47 | K137: 47.8008805 | L137: 47.8008805 | M137: 0.9178167362 | N137: 0.5044916507 | O137: 0.04546283943
A138: 128 | B138: 48 | C138: 48.75665027 | D138: 0.4729064204 | I138: 128 | J138: 48 | K138: 48.75665027 | L138: 48.75665027 | M138: 0.9217115657 | N138: 0.4729064204 | O138: 0.04301894115
A139: 129 | B139: 49 | C139: 49.71480094 | D139: 0.4432874037 | I139: 129 | J139: 49 | K139: 49.71480094 | L139: 49.71480094 | M139: 0.9254361187 | N139: 0.4432874037 | O139: 0.04070007416
A140: 130 | B140: 50 | C140: 50.67521039 | D140: 0.4155140855 | I140: 130 | J140: 50 | K140: 50.67521039 | L140: 50.67521039 | M140: 0.9289966862 | N140: 0.4155140855 | O140: 0.03850042088
A141: 131 | B141: 51 | C141: 51.63776223 | D141: 0.389473116 | I141: 131 | J141: 51 | K141: 51.63776223 | L141: 51.63776223 | M141: 0.9323994208 | N141: 0.389473116 | O141: 0.03641438254
A142: 132 | B142: 52 | C142: 52.60234555 | D142: 0.3650579085 | I142: 132 | J142: 52 | K142: 52.60234555 | L142: 52.60234555 | M142: 0.9356503307 | N142: 0.3650579085 | O142: 0.03443657571
A143: 133 | B143: 53 | C143: 53.56885473 | D143: 0.3421682558 | I143: 133 | J143: 53 | K143: 53.56885473 | L143: 53.56885473 | M143: 0.9387552761 | N143: 0.3421682558 | O143: 0.03256182845
A144: 134 | B144: 54 | C144: 54.5371892 | D144: 0.3207099678 | I144: 134 | J144: 54 | K144: 54.5371892 | L144: 54.5371892 | M144: 0.9417199653 | N144: 0.3207099678 | O144: 0.03078517596
A145: 135 | B145: 55 | C145: 55.50725326 | D145: 0.3005945272 | I145: 135 | J145: 55 | K145: 55.50725326 | L145: 55.50725326 | M145: 0.9445499521 | N145: 0.3005945272 | O145: 0.02910185604
A146: 136 | B146: 56 | C146: 56.4789559 | D146: 0.2817387628 | I146: 136 | J146: 56 | K146: 56.4789559 | L146: 56.4789559 | M146: 0.9472506343 | N146: 0.2817387628 | O146: 0.02750730414
A147: 137 | B147: 57 | C147: 57.45221053 | D147: 0.264064541 | I147: 137 | J147: 57 | K147: 57.45221053 | L147: 57.45221053 | M147: 0.9498272521 | N147: 0.264064541 | O147: 0.02599714824
A148: 138 | B148: 58 | C148: 58.42693487 | D148: 0.2474984726 | I148: 138 | J148: 58 | K148: 58.42693487 | L148: 58.42693487 | M148: 0.952284888 | N148: 0.2474984726 | O148: 0.02456720357
A149: 139 | B149: 59 | C149: 59.40305072 | D149: 0.2319716365 | I149: 139 | J149: 59 | K149: 59.40305072 | L149: 59.40305072 | M149: 0.9546284669 | N149: 0.2319716365 | O149: 0.02321346713
A150: 140 | B150: =IF(A150>$B$7,C150-(A150/$B$7)^(1-$B$13)*D150,0) -> 60 | C150: =BlackScholesPrice(A150,$B$4,$B$5,$B$6,$B$10,$B$11) -> 60.38048381 | D150: =BlackScholesPrice($B$7^2/A150,$B$4,$B$5,$B$6,$B$10,$B$11) -> 0.2174193176 | I150: 140 | J150: =IF(I150<$B$7,0,L150+($B$7-$B$4)*M150-(I150/$B$7)^(1-$B$13)*(N150+($B$7-$B$4)*O150)) -> 60 | K150: =BlackScholesPrice(I150,$B$4,$B$5,$B$6,$B$10,$B$11) -> 60.38048381 | L150: =BlackScholesPrice(I150,$B$7,$B$5,$B$6,$B$10,$B$11) -> 60.38048381 | M150: =BlackScholesDigital(I150,$B$7,$B$5,$B$6,$B$10,$B$11) -> 0.9568627561 | N150: =BlackScholesPrice($B$7^2/I150,$B$7,$B$5,$B$6,$B$10,$B$11) -> 0.2174193176 | O150: =BlackScholesDigital($B$7^2/I150,$B$7,$B$5,$B$6,$B$10,$B$11) -> 0.0219321122
A151: 141 | B151: 61 | C151: 61.35916359 | D151: 0.2037807588 | I151: 141 | J151: 61 | K151: 61.35916359 | L151: 61.35916359 | M151: 0.9589923669 | N151: 0.2037807588 | O151: 0.02071948267
A152: 142 | B152: 62 | C152: 62.3390231 | D152: 0.1909989281 | I152: 142 | J152: 62 | K152: 62.3390231 | L152: 62.3390231 | M152: 0.961021756 | N152: 0.1909989281 | O152: 0.01957208748
A153: 143 | B153: 63 | C153: 63.31999878 | D153: 0.1790202965 | I153: 143 | J153: 63 | K153: 63.31999878 | L153: 63.31999878 | M153: 0.9629552269 | N153: 0.1790202965 | O153: 0.01848659488
A154: 144 | B154: 64 | C154: 64.30203033 | D154: 0.1677946302 | I154: 144 | J154: 64 | K154: 64.30203033 | L154: 64.30203033 | M154: 0.9647969324 | N154: 0.1677946302 | O154: 0.0174598269
A155: 145 | B155: 65 | C155: 65.28506056 | D155: 0.1572747933 | I155: 145 | J155: 65 | K155: 65.28506056 | L155: 65.28506056 | M155: 0.9665508769 | N155: 0.1572747933 | O155: 0.01648875368
A156: 146 | B156: 66 | C156: 66.26903523 | D156: 0.1474165622 | I156: 146 | J156: 66 | K156: 66.26903523 | L156: 66.26903523 | M156: 0.968220919 | N156: 0.1474165622 | O156: 0.01557048802
A157: 147 | B157: 67 | C157: 67.2539029 | D157: 0.1381784503 | I157: 147 | J157: 67 | K157: 67.2539029 | L157: 67.2539029 | M157: 0.9698107745 | N157: 0.1381784503 | O157: 0.01470227984
A158: 148 | B158: 68 | C158: 68.23961485 | D158: 0.1295215431 | I158: 148 | J158: 68 | K158: 68.23961485 | L158: 68.23961485 | M158: 0.9713240192 | N158: 0.1295215431 | O158: 0.01388151088
A159: 149 | B159: 69 | C159: 69.2261249 | D159: 0.1214093421 | I159: 149 | J159: 69 | K159: 69.2261249 | L159: 69.2261249 | M159: 0.9727640922 | N159: 0.1214093421 | O159: 0.0131056894
A160: 150 | B160: 70 | C160: 70.21338928 | D160: 0.1138076186 | I160: 150 | J160: 70 | K160: 70.21338928 | L160: 70.21338928 | M160: 0.9741342995 | N160: 0.1138076186 | O160: 0.01237244505
A161: 151 | B161: 71 | C161: 71.20136657 | D161: 0.1066842753 | I161: 151 | J161: 71 | K161: 71.20136657 | L161: 71.20136657 | M161: 0.9754378167 | N161: 0.1066842753 | O161: 0.0116795238
A162: 152 | B162: 72 | C162: 72.19001751 | D162: 0.1000092166 | I162: 152 | J162: 72 | K162: 72.19001751 | L162: 72.19001751 | M162: 0.9766776933 | N162: 0.1000092166 | O162: 0.01102478306
A163: 153 | B163: 73 | C163: 73.17930496 | D163: 0.09375422562 | I163: 153 | J163: 73 | K163: 73.17930496 | L163: 73.17930496 | M163: 0.9778568556 | N163: 0.09375422562 | O163: 0.0104061869
A164: 154 | B164: 74 | C164: 74.16919374 | D164: 0.08789284949 | I164: 154 | J164: 74 | K164: 74.16919374 | L164: 74.16919374 | M164: 0.9789781107 | N164: 0.08789284949 | O164: 0.009821801378
A165: 155 | B165: 75 | C165: 75.15965056 | D165: 0.08240029077 | I165: 155 | J165: 75 | K165: 75.15965056 | L165: 75.15965056 | M165: 0.9800441497 | N165: 0.08240029077 | O165: 0.009269790077
A166: 156 | B166: 76 | C166: 76.15064395 | D166: 0.07725330553 | I166: 156 | J166: 76 | K166: 76.15064395 | L166: 76.15064395 | M166: 0.9810575517 | N166: 0.07725330553 | O166: 0.008748409725
A167: 157 | B167: 77 | C167: 77.14214409 | D167: 0.07243010751 | I167: 157 | J167: 77 | K167: 77.14214409 | L167: 77.14214409 | M167: 0.9820207872 | N167: 0.07243010751 | O167: 0.008256005976
A168: 158 | B168: 78 | C168: 78.1341228 | D168: 0.06791027799 | I168: 158 | J168: 78 | K168: 78.1341228 | L168: 78.1341228 | M168: 0.9829362216 | N168: 0.06791027799 | O168: 0.007791009341
A169: 159 | B169: 79 | C169: 79.12655343 | D169: 0.06367468108 | I169: 159 | J169: 79 | K169: 79.12655343 | L169: 79.12655343 | M169: 0.9838061188 | N169: 0.06367468108 | O169: 0.007351931255
A170: 160 | B170: 80 | C170: 80.11941077 | D170: 0.05970538415 | I170: 160 | J170: 80 | K170: 80.11941077 | L170: 80.11941077 | M170: 0.9846326448 | N170: 0.05970538415 | O170: 0.006937360292
A171: 161 | B171: 81 | C171: 81.11267099 | D171: 0.055985583 | I171: 161 | J171: 81 | K171: 81.11267099 | L171: 81.11267099 | M171: 0.9854178712 | N171: 0.055985583 | O171: 0.006545958511
A172: 162 | B172: 82 | C172: 82.10631155 | D172: 0.05249953166 | I172: 162 | J172: 82 | K172: 82.10631155 | L172: 82.10631155 | M172: 0.9861637782 | N172: 0.05249953166 | O172: 0.006176457959
A173: 163 | B173: 83 | C173: 83.10031117 | D173: 0.04923247637 | I173: 163 | J173: 83 | K173: 83.10031117 | L173: 83.10031117 | M173: 0.9868722586 | N173: 0.04923247637 | O173: 0.005827657292
A174: 164 | B174: 84 | C174: 84.09464972 | D174: 0.04617059368 | I174: 164 | J174: 84 | K174: 84.09464972 | L174: 84.09464972 | M174: 0.9875451205 | N174: 0.04617059368 | O174: 0.005498418547
A175: 165 | B175: 85 | C175: 85.08930817 | D175: 0.04330093224 | I175: 165 | J175: 85 | K175: 85.08930817 | L175: 85.08930817 | M175: 0.9881840908 | N175: 0.04330093224 | O175: 0.005187664035
A176: 166 | B176: 86 | C176: 86.08426857 | D176: 0.04061135822 | I176: 166 | J176: 86 | K176: 86.08426857 | L176: 86.08426857 | M176: 0.9887908181 | N176: 0.04061135822 | O176: 0.004894373373
A177: 167 | B177: 87 | C177: 87.07951393 | D177: 0.03809050408 | I177: 167 | J177: 87 | K177: 87.07951393 | L177: 87.07951393 | M177: 0.9893668763 | N177: 0.03809050408 | O177: 0.004617580633
A178: 168 | B178: 88 | C178: 88.07502821 | D178: 0.03572772048 | I178: 168 | J178: 88 | K178: 88.07502821 | L178: 88.07502821 | M178: 0.9899137669 | N178: 0.03572772048 | O178: 0.004356371617
A179: 169 | B179: 89 | C179: 89.07079628 | D179: 0.03351303116 | I179: 169 | J179: 89 | K179: 89.07079628 | L179: 89.07079628 | M179: 0.9904329224 | N179: 0.03351303116 | O179: 0.004109881255
A180: 170 | B180: 90 | C180: 90.06680382 | D180: 0.03143709063 | I180: 170 | J180: 90 | K180: 90.06680382 | L180: 90.06680382 | M180: 0.9909257087 | N180: 0.03143709063 | O180: 0.003877291116
A181: 171 | B181: 91 | C181: 91.06303732 | D181: 0.02949114443 | I181: 171 | J181: 91 | K181: 91.06303732 | L181: 91.06303732 | M181: 0.9913934282 | N181: 0.02949114443 | O181: 0.003657827025
A182: 172 | B182: 92 | C182: 92.05948403 | D182: 0.02766699195 | I182: 172 | J182: 92 | K182: 92.05948403 | L182: 92.05948403 | M182: 0.9918373225 | N182: 0.02766699195 | O182: 0.0034507568
A183: 173 | B183: 93 | C183: 93.05613191 | D183: 0.02595695146 | I183: 173 | J183: 93 | K183: 93.05613191 | L183: 93.05613191 | M183: 0.9922585744 | N183: 0.02595695146 | O183: 0.003255388083
A184: 174 | B184: 94 | C184: 94.05296957 | D184: 0.02435382741 | I184: 174 | J184: 94 | K184: 94.05296957 | L184: 94.05296957 | M184: 0.9926583112 | N184: 0.02435382741 | O184: 0.003071066279
A185: 175 | B185: 95 | C185: 95.0499863 | D185: 0.02285087969 | I185: 175 | J185: 95 | K185: 95.0499863 | L185: 95.0499863 | M185: 0.9930376062 | N185: 0.02285087969 | O185: 0.002897172585
A186: 176 | B186: 96 | C186: 96.04717195 | D186: 0.02144179487 | I186: 176 | J186: 96 | K186: 96.04717195 | L186: 96.04717195 | M186: 0.993397482 | N186: 0.02144179487 | O186: 0.002733122125
A187: 177 | B187: 97 | C187: 97.04451696 | D187: 0.02012065924 | I187: 177 | J187: 97 | K187: 97.04451696 | L187: 97.04451696 | M187: 0.9937389117 | N187: 0.02012065924 | O187: 0.002578362158
A188: 178 | B188: 98 | C188: 98.0420123 | D188: 0.01888193348 | I188: 178 | J188: 98 | K188: 98.0420123 | L188: 98.0420123 | M188: 0.9940628221 | N188: 0.01888193348 | O188: 0.002432370385
A189: 179 | B189: 99 | C189: 99.03964946 | D189: 0.01772042899 | I189: 179 | J189: 99 | K189: 99.03964946 | L189: 99.03964946 | M189: 0.9943700949 | N189: 0.01772042899 | O189: 0.002294653339
A190: 180 | B190: 100 | C190: 100.0374204 | D190: 0.01663128567 | I190: 180 | J190: 100 | K190: 100.0374204 | L190: 100.0374204 | M190: 0.9946615692 | N190: 0.01663128567 | O190: 0.002164744843
A191: 181 | B191: 101 | C191: 101.0353175 | D191: 0.01560995111 | I191: 181 | J191: 101 | K191: 101.0353175 | L191: 101.0353175 | M191: 0.9949380433 | N191: 0.01560995111 | O191: 0.002042204558
A192: 182 | B192: 102 | C192: 102.0333337 | D192: 0.01465216108 | I192: 182 | J192: 102 | K192: 102.0333337 | L192: 102.0333337 | M192: 0.9952002764 | N192: 0.01465216108 | O192: 0.001926616593
A193: 183 | B193: 103 | C193: 103.0314621 | D193: 0.01375392127 | I193: 183 | J193: 103 | K193: 103.0314621 | L193: 103.0314621 | M193: 0.9954489908 | N193: 0.01375392127 | O193: 0.001817588194
A194: 184 | B194: 104 | C194: 104.0296964 | D194: 0.01291149017 | I194: 184 | J194: 104 | K194: 104.0296964 | L194: 104.0296964 | M194: 0.9956848731 | N194: 0.01291149017 | O194: 0.001714748493
A195: 185 | B195: 105 | C195: 105.0280307 | D195: 0.01212136301 | I195: 185 | J195: 105 | K195: 105.0280307 | L195: 105.0280307 | M195: 0.9959085762 | N195: 0.01212136301 | O195: 0.00161774732
A196: 186 | B196: 106 | C196: 106.0264591 | D196: 0.01138025677 | I196: 186 | J196: 106 | K196: 106.0264591 | L196: 106.0264591 | M196: 0.9961207205 | N196: 0.01138025677 | O196: 0.001526254083
A197: 187 | B197: 107 | C197: 107.0249764 | D197: 0.01068509606 | I197: 187 | J197: 107 | K197: 107.0249764 | L197: 107.0249764 | M197: 0.9963218961 | N197: 0.01068509606 | O197: 0.001439956698
A198: 188 | B198: 108 | C198: 108.0235776 | D198: 0.01003300001 | I198: 188 | J198: 108 | K198: 108.0235776 | L198: 108.0235776 | M198: 0.9965126633 | N198: 0.01003300001 | O198: 0.001358560582
A199: 189 | B199: 109 | C199: 109.0222577 | D199: 0.009421269833 | I199: 189 | J199: 109 | K199: 109.0222577 | L199: 109.0222577 | M199: 0.9966935547 | N199: 0.009421269833 | O199: 0.001281787687
A200: 190 | B200: 110 | C200: 110.0210125 | D200: 0.008847377347 | I200: 190 | J200: 110 | K200: 110.0210125 | L200: 110.0210125 | M200: 0.9968650764 | N200: 0.008847377347 | O200: 0.001209375601
A201: 191 | B201: 111 | C201: 111.0198376 | D201: 0.008308954085 | I201: 191 | J201: 111 | K201: 111.0198376 | L201: 111.0198376 | M201: 0.9970277091 | N201: 0.008308954085 | O201: 0.00114107668
A202: 192 | B202: 112 | C202: 112.0187291 | D202: 0.007803781178 | I202: 192 | J202: 112 | K202: 112.0187291 | L202: 112.0187291 | M202: 0.9971819092 | N202: 0.007803781178 | O202: 0.001076657235
A203: 193 | B203: 113 | C203: 113.0176831 | D203: 0.00732977985 | I203: 193 | J203: 113 | K203: 113.0176831 | L203: 113.0176831 | M203: 0.9973281104 | N203: 0.00732977985 | O203: 0.001015896764
A204: 194 | B204: 114 | C204: 114.0166961 | D204: 0.006885002524 | I204: 194 | J204: 114 | K204: 114.0166961 | L204: 114.0166961 | M204: 0.9974667244 | N204: 0.006885002524 | O204: 0.0009585872158
A205: 195 | B205: 115 | C205: 115.0157648 | D205: 0.006467624493 | I205: 195 | J205: 115 | K205: 115.0157648 | L205: 115.0157648 | M205: 0.9975981421 | N205: 0.006467624493 | O205: 0.0009045323008
A206: 196 | B206: 116 | C206: 116.014886 | D206: 0.006075936116 | I206: 196 | J206: 116 | K206: 116.014886 | L206: 116.014886 | M206: 0.9977227347 | N206: 0.006075936116 | O206: 0.0008535468375
... 4 more rows

Sheet Sheet2

Sheet Sheet3
